bitfinex-derivatives/quotes_SOLF0:USTF0_20251020
["timestamp","ask_amount","ask_price","bid_price","bid_amount"]
[1760933821577,7.4216,191.37,191.25,7.3944]
[1760933821776,2.72,191.37,191.28,2.69]
[1760933821976,2.72,191.39,191.28,2.69]
[1760933823083,4.7014,191.38,191.28,2.69]
[1760933825683,4.7014,191.38,191.28,7.3938]
[1760933826481,2.72,191.39,191.3,4.7033]
[1760933827286,2.72,191.39,191.31,2.69]
[1760933828883,2.72,191.39,191.22,2.69]
[1760933829485,4.7018,191.36,191.26,7.3943]
[1760933829790,7.4218,191.36,191.26,7.3943]
[1760933831386,2.72,191.36,191.22,2.69]
[1760933832391,2.75,191.31,191.22,2.69]
[1760933832886,2.75,191.36,191.25,2.68]
[1760933833686,4.7024,191.34,191.25,2.68]
[1760933833891,2.75,191.33,191.19,2.68]
[1760933834389,2.75,191.3,191.2,4.7055]
[1760933834779,2.75,191.3,191.19,2.68]
[1760933836092,2.75,191.3,191.21,4.7053]
[1760933836489,2.75,191.3,191.19,2.68]
[1760933836791,2.75,191.3,191.23,4.705]
[1760933837491,4.7028,191.32,191.23,7.405]
[1760933838201,2.82,191.31,191.23,7.405]
[1760933838500,2.82,191.31,191.23,2.7]
[1760933838902,2.82,191.31,191.2,4.7055]
[1760933839400,2.82,191.31,191.21,4.7053]
[1760933840194,4.7033,191.3,191.21,4.7053]
[1760933840394,4.7033,191.3,191.19,2.7]
[1760933840395,2.82,191.29,191.19,7.406]
[1760933840993,2.82,191.35,191.19,7.406]
[1760933841197,8.2625109,191.33,191.19,7.406]
[1760933841498,2.82,191.32,191.19,7.406]
[1760933841701,4.7038,191.29,191.19,7.406]
[1760933841894,2.82,191.28,191.19,7.406]
[1760933846202,4.7038,191.29,191.22,2.7]
[1760933847398,2.82,191.31,191.15,2.7]
[1760933847598,2.82,191.28,191.15,2.7]
[1760933847901,2.82,191.26,191.15,2.7]
[1760933848097,4.7051,191.23,191.15,2.7]
[1760933848699,4.7045,191.25,191.15,2.7]
[1760933848901,2.82,191.3,191.15,2.7]
[1760933849299,4.7036,191.29,191.19,2.7]
[1760933849604,2.82,191.28,191.19,2.7]
[1760933849805,4.7041,191.27,191.19,2.7]
[1760933851807,2.82,191.28,191.19,2.7]
[1760933852403,2.82,191.27,191.14,44.58]
[1760933852603,2.82,191.25,191.08,2.7]
[1760933852800,7.64949452,191.25,191.09,4.7082]
[1760933853005,7.64949452,191.25,191.1,2.7]
[1760933853006,2.82,191.25,191.1,2.7]
[1760933853698,7.5255,191.21,191.1,2.7]
[1760933854112,2.82,191.21,191.1,2.7]
[1760933856915,4.7066,191.17,191.05,32.71048122]
[1760933857212,2.82,191.16,191.06,2.7]
[1760933857605,2.82,191.16,191.07,4.7089]
[1760933858215,4.707,191.15,191.06,2.7]
[1760933859104,4.7075,191.13,191.06,2.7]
[1760933860407,4.708,191.11,191.05,2.76118122]
[1760933860818,2.82,191.1,191.05,2.76118122]
[1760933861511,2.82,191.08,191.05,2.76118122]
[1760933862415,4.7085,191.09,191.05,2.76118122]
[1760933862716,4.7092,191.06,191.05,2.76118122]
[1760933862915,7.5292,191.06,191.05,2.76118122]
[1760933863115,8.5692,191.06,191.05,2.76118122]
[1760933864517,7.5292,191.06,191.05,2.76118122]
[1760933864717,2.82,191.06,191.05,2.76118122]
[1760933868208,20.39614521,191.1,191.05,2.76118122]
[1760933868416,4.7084,191.1,191.05,2.76118122]
[1760933868612,2.76,191.08,191.05,2.76118122]
[1760933869115,5.01945554,191.11,191.05,2.76118122]
[1760933869316,2.76,191.1,191.05,2.76118122]
[1760933869512,18.60295384,191.1,191.05,2.76118122]
[1760933869713,15.84295384,191.1,191.05,2.76118122]
[1760933870014,1.04,191.09,190.91,2.79849448]
[1760933870222,1.94,191.0,190.91,2.79849448]
[1760933870610,4.7118,190.96,190.91,2.79849448]
[1760933870815,6.6518,190.96,190.91,2.79849448]
[1760933871317,1.94,190.95,190.91,2.79849448]
[1760933871520,6.6511,190.99,190.91,2.79849448]
[1760933872415,1.94,190.99,190.91,2.79849448]
[1760933872821,1.94,190.99,190.92,2.84]
[1760933873022,4.7103,191.02,190.92,2.84]
[1760933873218,1.94,191.03,190.92,2.84]
[1760933873822,6.6501,191.03,190.92,2.84]
[1760933874514,4.7106,191.01,190.92,2.84]
[1760933874727,4.7106,191.01,190.91,2.79849448]
[1760933874728,1.94,191.0,190.91,2.79849448]
[1760933874922,5.01945554,191.01,190.91,2.79849448]
[1760933875212,4.7115,190.97,190.91,2.79849448]
[1760933875722,6.6509,191.0,190.91,2.79849448]
[1760933876520,4.71,191.03,190.92,2.84]
[1760933877719,1.94,191.04,190.92,2.84]
[1760933878524,6.6498,191.04,190.92,2.84]
[1760933878919,5.01945554,191.05,190.92,2.84]
[1760933879228,1.94,191.04,190.92,2.84]
[1760933879621,4.71,191.03,190.92,2.84]
[1760933879823,1.94,191.0,190.91,2.79849448]
[1760933880523,5.01945554,190.97,190.91,2.79849448]
[1760933880717,6.95945554,190.97,190.91,2.79849448]
[1760933881523,4.7111,190.99,190.91,2.79849448]
[1760933881928,1.94,191.01,190.92,2.84]
[1760933883029,6.6505,191.01,190.92,2.84]
[1760933884425,5.01945554,191.03,190.92,2.84]
[1760933884631,1.94,191.06,190.93,2.84]
[1760933884923,5.01945554,191.07,190.93,2.84]
[1760933885129,6.65,191.03,190.93,2.84]
[1760933887320,4.7105,191.01,190.93,2.84]
[1760933887626,1.94,191.03,190.93,2.84]
[1760933889230,1.94,191.03,190.93,7.5524]
[1760933889433,1.94,191.03,190.94,2.84]
[1760933889930,4.7096,191.05,190.94,2.84]
[1760933890125,6.6489,191.08,190.96,2.84]
[1760933890433,5.01945554,191.11,190.96,2.84]
[1760933890926,1.94,191.12,191.01,2.84]
[1760933891122,1.94,191.16,191.01,2.84]
[1760933891321,43.35945554,191.19,191.01,2.84]
[1760933891322,5.01945554,191.15,191.01,2.84]
[1760933891526,1.94,191.14,191.01,2.84]
[1760933891723,5.01945554,191.15,191.01,2.84]
[1760933891724,6.6482,191.1,191.01,2.84]
[1760933891930,1.94,191.1,191.01,2.84]
[1760933892123,1.94,191.1,190.95,2.8]
[1760933892328,4.7092,191.06,190.95,2.8]
[1760933892523,5.01945554,191.07,190.91,2.79849448]
[1760933892729,1.94,191.02,190.91,2.79849448]
[1760933893031,4.7112,190.98,190.91,2.79849448]
[1760933893325,1.94,191.02,190.91,2.79849448]
[1760933893522,5.01945554,191.03,190.91,2.79849448]
[1760933893724,1.94,191.02,190.91,2.79849448]
[1760933894829,1.94,191.02,190.92,2.8]
[1760933896034,6.6504,191.02,190.92,2.8]
[1760933896539,1.94,191.07,190.92,2.8]
[1760933896733,5.01945554,191.08,190.92,2.8]
[1760933897036,1.94,191.07,190.92,2.8]
[1760933897234,1.93,191.07,190.92,2.8]
[1760933897433,1.93,191.03,190.92,2.8]
[1760933898033,4.7105,191.01,190.92,2.8]
[1760933899038,4.711,190.99,190.91,2.79849448]
[1760933899239,5.01945554,191.06,190.91,5.41849448]
[1760933899537,1.93,191.05,190.91,5.41849448]
[1760933899730,1.93,191.05,190.92,2.62]
[1760933900333,4.71,191.03,190.92,7.3325]
[1760933900532,1.93,191.05,190.92,2.62]
[1760933901335,4.7099,191.04,190.92,2.62]
[1760933901739,1.93,191.05,190.92,2.62]
[1760933902334,5.01945554,191.04,190.92,2.62]
[1760933902537,1.93,191.03,190.92,2.62]
[1760933903237,6.76539982,191.07,190.93,2.62]
[1760933903436,1.93,191.05,190.93,2.62]
[1760933903639,4.7102,191.02,190.93,2.62]
[1760933904344,1.93,191.05,190.93,2.62]
[1760933904543,1.93,191.04,190.93,2.62]
[1760933905039,1.93,191.04,190.91,2.79849448]
[1760933905040,1.93,191.01,190.91,2.79849448]
[1760933905245,6.76539982,191.0,190.91,2.79849448]
[1760933905546,1.93,191.0,190.91,2.79849448]
[1760933905845,4.7118,190.96,190.91,5.41849448]
[1760933906246,4.7118,190.96,190.92,2.62]
[1760933907847,4.83539982,191.0,190.91,2.79849448]
[1760933908143,1.93,190.95,190.91,2.79849448]
[1760933908651,6.6421,190.95,190.91,2.79849448]
[1760933909653,4.7121,190.95,190.91,2.79849448]
[1760933909950,4.7114,190.98,190.91,5.41849448]
[1760933910150,1.93,190.99,190.91,5.41849448]
[1760933911053,4.7117,190.96,190.91,5.41849448]
[1760933911547,1.93,190.97,190.91,2.79849448]
[1760933911749,4.83539982,190.95,190.91,9.448e-05]
[1760933911945,4.7127,190.92,190.91,9.448e-05]
[1760933912148,4.7127,190.92,190.89,9.614e-05]
[1760933912350,4.83539982,190.93,190.89,9.614e-05]
[1760933912548,4.7132,190.9,190.89,9.614e-05]
[1760933912743,6.6432,190.9,190.89,9.614e-05]
[1760933912950,7.6832,190.9,190.89,9.614e-05]
[1760933913655,1.93,190.86,190.78,2.83580774]
[1760933913954,4.88140331,190.89,190.79,2.62]
[1760933914151,6.81140331,190.9,190.79,2.62]
[1760933914655,4.714,190.87,190.79,2.62]
[1760933919159,6.6434,190.9,190.79,2.62]
[1760933923065,4.7134,190.9,190.79,2.62]
[1760933923463,4.7127,190.93,190.79,2.62]
[1760933923766,78.34285477,190.94,190.81,2.62]
[1760933923967,4.7131,190.91,190.81,2.62]
[1760933924769,83.05535477,190.94,190.81,2.62]
[1760933925473,4.7128,190.92,190.81,7.3355]
[1760933925673,4.7128,190.92,190.82,2.62]
[1760933925972,1.93,190.91,190.82,2.62]
[1760933926276,76.41285477,190.94,190.84,2.62]
[1760933926571,81.12515477,190.94,190.84,2.62]
[1760933926775,1.93,190.93,190.84,2.62]
[1760933927467,4.7133,190.9,190.84,2.62]
[1760933927864,4.7133,190.9,190.8,7.3755]
[1760933928070,1.94,190.89,190.8,7.3755]
[1760933928270,1.94,190.89,190.8,2.66]
[1760933928766,76.41285477,190.94,190.81,4.7155]
[1760933928967,1.94,190.93,190.81,4.7155]
[1760933929175,1.94,190.93,190.82,2.66]
[1760933929771,4.7133,190.9,190.82,2.66]
[1760933930969,1.94,190.91,190.82,2.66]
[1760933931974,4.7133,190.9,190.82,2.66]
[1760933933280,4.7138,190.88,190.78,10.21200774]
[1760933934180,4.7143,190.86,190.78,10.21200774]
[1760933935079,4.7149,190.84,190.78,5.49580774]
[1760933936182,13.16747885,190.92,190.78,5.49580774]
[1760933936484,6.6552,190.83,190.78,5.49580774]
[1760933936683,6.6552,190.83,190.78,2.83580774]
[1760933936881,6.6552,190.83,190.79,2.66]
[1760933937081,15.43715284,190.84,190.78,2.83580774]
[1760933937279,4.7145,190.86,190.79,2.66]
[1760933937477,1.94,190.88,190.79,2.66]
[1760933937677,1.94,190.92,190.79,2.66]
[1760933938079,4.7133,190.9,190.8,4.7155]
[1760933938282,1.94,190.89,190.78,2.83580774]
[1760933938889,1.94,190.89,190.79,2.66]
[1760933939691,6.6537,190.89,190.79,2.66]
[1760933939881,1.94,190.89,190.79,2.66]
[1760933940082,4.88140331,190.92,190.79,2.66]
[1760933940282,1.94,190.91,190.79,2.66]
[1760933940982,4.88140331,190.92,190.79,2.66]
[1760933940983,6.6542,190.87,190.79,2.66]
[1760933941188,1.94,190.87,190.79,2.66]
[1760933941686,6.654,190.87,190.79,2.66]
[1760933941987,1.94,190.91,190.79,2.66]
[1760933942392,1.94,190.91,190.79,7.376]
[1760933942794,1.94,190.91,190.79,2.66]
[1760933942987,5.37152607,190.91,190.81,4.7154]
[1760933943290,5.37152607,190.91,190.82,2.66]
[1760933943491,1.94,190.91,190.82,2.66]
[1760933943690,10.08472607,190.91,190.82,2.66]
[1760933944583,6.6532,190.91,190.82,2.66]
[1760933944787,1.94,190.91,190.82,2.66]
[1760933945093,4.7125,190.93,190.82,2.66]
[1760933945484,91.92515339,190.94,190.84,2.66]
[1760933946593,4.7126,190.93,190.84,2.66]
[1760933946892,3.43152607,190.92,190.84,2.66]
[1760933947092,3.43152607,190.92,190.79,3.43152607]
[1760933947093,1.94,190.9,190.79,2.66]
[1760933947289,4.7137,190.89,190.79,2.66]
[1760933947690,1.94,190.88,190.79,2.66]
[1760933947993,4.7145,190.85,190.79,2.66]
[1760933948391,5.37152607,190.88,190.79,2.66]
[1760933948795,1.94,190.88,190.79,2.66]
[1760933949295,4.714,190.87,190.79,2.66]
[1760933949495,1.94,190.88,190.79,2.66]
[1760933950097,4.7145,190.86,190.79,2.66]
[1760933950492,1.94,190.87,190.78,2.83580774]
[1760933950692,1.94,190.86,190.78,2.83580774]
[1760933951091,6.6543,190.86,190.78,2.83580774]
[1760933951697,49.3738,190.88,190.79,2.66]
[1760933952091,4.7138,190.88,190.79,2.66]
[1760933952291,11.53470331,190.9,190.79,2.66]
[1760933952798,6.6533,190.9,190.79,7.376]
[1760933953188,1.95,190.88,190.79,7.376]
[1760933953487,1.95,190.88,190.79,2.66]
[1760933953691,4.714,190.87,190.79,2.66]
[1760933955596,4.714,190.87,190.78,2.83580774]
[1760933955791,4.7145,190.85,190.78,2.83580774]
[1760933956599,1.95,190.83,190.78,2.83580774]
[1760933957102,9.59630331,190.84,190.78,2.83580774]
[1760933957802,11.54630331,190.84,190.78,2.83580774]
[1760933958002,6.6649,190.84,190.78,2.83580774]
[1760933958598,9.59570331,190.86,190.78,5.57580774]
[1760933959102,4.7143,190.86,190.78,5.57580774]
[1760933960203,11.54520331,190.88,190.79,2.74]
[1760933960507,6.6638,190.88,190.79,2.74]
[1760933961201,4.7142,190.87,190.79,2.74]
[1760933964204,6.6645,190.86,190.78,2.83580774]
[1760933964802,1.95,190.86,190.78,2.83580774]
[1760933965006,4.88140331,190.88,190.78,2.83580774]
[1760933965007,1.95,190.83,190.78,2.83580774]
[1760933965210,6.6648,190.84,190.78,2.83580774]
[1760933966102,1.95,190.84,190.78,2.83580774]
[1760933970711,3.43393278,190.83,190.78,2.83580774]
[1760933970908,1.95,190.82,190.78,2.83580774]
[1760933971899,3.43393278,190.83,190.78,5.57580774]
[1760933972105,3.43393278,190.83,190.79,2.74]
[1760933972307,1.95,190.85,190.79,2.74]
[1760933972507,5.38393278,190.85,190.79,2.74]
[1760933974917,10.09863278,190.85,190.79,2.74]
[1760933975520,4.714,190.87,190.79,2.74]
[1760933976212,52.97533609,190.88,190.79,2.74]
[1760933976410,52.97533609,190.88,190.8,2.74]
[1760933976411,48.09393278,190.88,190.8,2.74]
[1760933977108,4.88140331,190.91,190.82,2.74]
[1760933977315,8.14693278,190.92,190.82,2.74]
[1760933977913,9.59460331,190.91,190.82,2.74]
[1760933978315,1.95,190.88,190.79,2.74]
[1760933979312,8.14763278,190.89,190.8,2.74]
[1760933980718,2.19627922,190.87,190.8,2.74]
[1760933981314,2.19627922,190.89,190.82,2.74]
[1760933983320,2.19627922,190.92,190.84,2.74]
[1760933983517,81.29425808,190.94,190.84,2.74]
[1760933983719,2.19627922,190.94,190.84,2.74]
[1760933984414,2.19627922,190.92,190.84,2.74]
[1760933985515,2.19627922,190.93,190.86,2.74]
[1760933986014,2.19627922,190.93,190.86,4.714]
[1760933986219,2.19627922,190.97,190.88,2.74]
[1760933988022,2.19627922,190.97,190.91,2.83]
[1760933990916,2.19627922,190.95,190.92,2.83]
[1760933991722,2.19627922,190.95,190.91,2.83]
[1760933991920,2.19627922,190.95,190.9,4.713]
[1760933992125,2.19627922,190.95,190.92,2.83]
[1760933992923,2.19627922,190.95,190.91,2.83]
[1760933993123,2.19627922,190.95,190.92,2.83]
[1760933993322,2.19627922,190.95,190.91,2.83]
[1760933993522,2.19627922,190.95,190.9,4.713]
[1760933993722,2.19627922,190.95,190.91,2.83]
[1760933994222,2.19627922,190.93,190.8,4.61998892]
[1760933994429,49.52140331,191.03,190.8,2.83]
[1760933994430,2.19627922,190.88,190.8,2.83]
[1760933994623,2.19627922,190.86,190.8,2.83]
[1760933995235,2.19627922,190.86,190.8,7.5455]
[1760933995535,2.19627922,190.86,190.82,2.83]
[1760933995735,2.19627922,190.86,190.82,4.7152]
[1760933995931,1.94,190.94,190.79,2.83]
[1760933996137,2.19627922,190.89,190.79,2.83]
[1760933997034,2.19627922,190.89,190.82,2.83]
[1760933997229,2.19627922,190.87,190.81,4.7155]
[1760933997431,2.19627922,190.87,190.79,2.83]
[1760933997838,2.19627922,190.87,190.84,2.83]
[1760933998034,2.19627922,190.87,190.85,2.83]
[1760933998230,2.19627922,190.89,190.85,2.83]
[1760933998433,2.19627922,190.89,190.79,2.83]
[1760933998833,2.19627922,190.89,190.8,2.19627922]
[1760933999028,15.82646369,191.0,190.79,2.83]
[1760933999339,2.19627922,190.95,190.86,2.83]
[1760933999533,2.19627922,190.97,190.9,7.5431]
[1760934000838,8.84757922,190.99,190.9,9.73937922]
[1760934001028,1.94,190.98,190.88,4.7137]
[1760934001236,2.19627922,190.95,190.88,6.90997922]
[1760934001435,1.94,190.96,190.88,6.90997922]
[1760934001830,1.94,190.96,190.89,2.83]
[1760934003843,17.41914617,191.0,190.92,2.19627922]
[1760934004042,1.94,191.0,190.91,2.83]
[1760934004239,1.94,191.0,190.92,2.19627922]
[1760934005742,1.94,191.0,190.93,4.7123]
[1760934006243,1.94,191.0,190.93,6.90857922]
[1760934006635,1.94,191.0,190.95,7.542]
[1760934006841,15.96018844,191.03,190.96,2.83]
[1760934007042,4.13627922,191.04,190.96,2.83]
[1760934007532,4.13627922,191.04,190.97,6.90777922]
[1760934007533,1.94,191.04,190.97,6.90777922]
[1760934007735,76.93358895,191.06,190.81,27.45527876]
[1760934007736,2.19627922,191.02,190.85,2.83]
[1760934007931,1.94,190.99,190.91,2.19627922]
[1760934009143,1.94,190.99,190.91,6.90907922]
[1760934009342,1.94,190.99,190.93,2.19627922]
[1760934009738,2.19627922,191.03,190.93,5.02627922]
[1760934009946,8.84657922,191.03,190.95,2.19627922]
[1760934010134,1.94,191.03,190.96,2.83]
[1760934010939,1.94,191.03,190.97,2.19627922]
[1760934011438,1.94,191.03,190.96,2.83]
[1760934011744,4.13627922,191.03,190.96,2.83]
[1760934013645,1.94,191.02,190.91,2.71]
[1760934013842,1.94,191.02,190.93,2.19627922]
[1760934014345,2.19627922,191.01,190.93,2.19627922]
[1760934014647,1.94,190.99,190.91,7.423]
[1760934014945,1.94,190.99,190.93,2.19627922]
[1760934015546,6.90677922,191.02,190.94,2.71]
[1760934016543,15.72631439,191.04,190.89,4.7133]
[1760934016544,6.90727922,191.0,190.89,4.7133]
[1760934016847,2.19627922,190.98,190.89,2.71]
[1760934017249,2.19627922,190.98,190.9,2.19627922]
[1760934018249,2.19627922,190.98,190.89,2.71]
[1760934018250,1.95,190.97,190.89,2.71]
[1760934019049,6.6618,190.97,190.89,2.71]
[1760934019248,2.19627922,190.96,190.89,2.71]
[1760934022849,1.95,190.97,190.91,2.83]
[1760934023646,15.77588607,191.04,190.94,2.19627922]
[1760934023647,4.86816809,191.03,190.94,2.19627922]
[1760934023950,2.19627922,191.03,190.95,2.83]
[1760934028644,1.95,191.04,190.96,6.90807922]
[1760934029152,2.19627922,191.03,190.96,4.7118]
[1760934029543,2.19627922,191.03,190.95,2.83]
[1760934029745,1.95,191.02,190.95,2.83]
[1760934030750,2.19627922,191.01,190.95,2.83]
[1760934032151,1.95,191.02,190.95,2.83]
[1760934033758,2.19627922,191.01,190.95,2.83]
[1760934033952,1.95,191.02,190.95,7.542]
[1760934034455,4.7102,191.03,190.96,2.83]
[1760934035058,4.14627922,191.02,190.96,2.83]
[1760934037857,6.6606,191.01,190.96,2.83]
[1760934038061,1.95,191.0,190.92,5.02627922]
[1760934038256,2.19627922,190.99,190.92,2.83]
[1760934040761,6.6608,191.0,190.92,2.83]
[1760934041257,4.86816809,191.03,190.92,2.83]
[1760934041465,4.86816809,191.03,190.94,3.42778161]
[1760934041657,8.44089079,191.05,190.95,2.83]
[1760934041658,6.81816809,191.05,190.95,2.83]
[1760934041956,1.95,191.05,190.95,2.83]
[1760934042260,4.86816809,191.07,190.98,2.83]
[1760934042464,1.95,191.06,190.98,2.83]
[1760934042657,6.81816809,191.06,190.98,2.83]
[1760934043256,4.86816809,191.06,190.94,6.25778161]
[1760934043455,6.81816809,191.05,190.94,6.25778161]
[1760934044054,6.81816809,191.05,190.95,4.712]
[1760934044254,1.95,191.03,190.94,2.83]
[1760934044455,4.86816809,191.02,190.94,2.83]
[1760934044765,6.81816809,191.03,190.94,2.83]
[1760934045966,4.7106,191.01,190.94,2.83]
[1760934047368,11.52826809,191.03,190.94,2.83]
[1760934048667,11.52826809,191.03,190.94,7.5423]
[1760934049265,6.6601,191.03,190.94,7.5423]
[1760934049465,11.52826809,191.03,190.94,7.5423]
[1760934050158,11.52826809,191.03,190.94,2.83]
[1760934050367,14.9560497,191.03,190.94,2.83]
[1760934050569,11.52826809,191.03,190.94,2.83]
[1760934051475,6.6505,191.02,190.94,2.83]
[1760934057168,1.94,191.01,190.94,2.83]
[1760934058679,1.94,191.01,190.87,4.67606729]
[1760934058680,1.94,190.99,190.9,2.62]
[1760934059776,1.94,190.96,190.9,2.62]
[1760934059973,1.94,190.99,190.9,2.62]
[1760934061076,1.94,190.99,190.9,7.3332]
[1760934061681,1.94,190.99,190.91,2.62]
[1760934063076,8.32110938,191.0,190.88,2.62]
[1760934063272,5.36778161,190.97,190.88,2.62]
[1760934063675,1.94,190.95,190.88,2.62]
[1760934064377,6.6522,190.95,190.88,2.62]
[1760934064678,1.94,190.94,190.83,2.62]
[1760934065380,1.94,190.94,190.86,4.7142]
[1760934065577,1.94,190.93,190.83,2.62]
[1760934065777,1.94,190.9,190.8,26.08]
[1760934066075,1.94,190.87,190.79,2.62]
[1760934068176,4.7141,190.87,190.79,2.62]
[1760934068382,1.94,190.86,190.78,2.83580774]
[1760934073085,4.7145,190.85,190.78,2.83580774]
[1760934073386,1.93,190.84,190.78,2.83580774]
[1760934074082,4.7155,190.81,190.78,2.83580774]
[1760934074277,1.93,190.81,190.78,2.83580774]
[1760934074476,3.42778161,190.79,190.78,4.74e-06]
[1760934074676,1.93,190.78,190.65,5.703121]
[1760934074979,1.93,190.78,190.65,9.13090261]
[1760934075187,1.93,190.74,190.65,9.13090261]
[1760934075687,6.6474,190.74,190.65,9.13090261]
[1760934076076,6.6474,190.74,190.65,5.703121]
[1760934076687,17.37679144,190.74,190.66,2.83]
[1760934076888,4.7166,190.77,190.66,2.83]
[1760934077089,4.7166,190.77,190.68,2.83]
[1760934077989,4.717,190.75,190.68,2.83]
[1760934078378,4.717,190.75,190.65,6.30090261]
[1760934078379,1.94,190.76,190.65,2.873121]
[1760934078583,1.94,190.72,190.65,2.873121]
[1760934079578,1.94,190.72,190.66,2.76]
[1760934080187,6.6578,190.72,190.66,2.76]
[1760934080390,1.94,190.72,190.66,2.76]
[1760934080587,15.92149632,190.76,190.66,2.76]
[1760934080788,6.6572,190.75,190.66,6.18778161]
[1760934081392,1.94,190.75,190.67,2.76]
[1760934081986,15.3312176,190.76,190.7,2.76]
[1760934082187,1.94,190.8,190.73,2.76]
[1760934082591,15.74998269,190.8,190.75,3.42778161]
[1760934082793,1.94,190.84,190.75,6.18778161]
[1760934083389,1.94,190.84,190.75,2.76]
[1760934083892,1.94,190.84,190.71,6.18778161]
[1760934084088,15.83152693,190.84,190.71,2.76]
[1760934084401,6.656,190.79,190.66,2.76]
[1760934084593,6.656,190.79,190.68,2.76]
[1760934084790,1.94,190.81,190.69,2.76]
[1760934084992,15.77438256,190.84,190.65,5.633121]
[1760934084993,1.94,190.75,190.65,5.633121]
[1760934085492,1.94,190.75,190.66,2.76]
[1760934085690,8.14458161,190.76,190.66,2.76]
[1760934085892,3.42778161,190.76,190.66,2.76]
[1760934086390,1.94,190.78,190.66,2.76]
[1760934086391,5.36778161,190.78,190.66,2.76]
[1760934086790,1.94,190.78,190.65,2.873121]
[1760934086996,1.94,190.78,190.66,2.76]
[1760934087799,1.94,190.82,190.7,2.76]
[1760934088299,1.94,190.82,190.65,9.293121]
[1760934088300,1.94,190.82,190.72,2.76]
[1760934088804,4.7155,190.81,190.72,2.76]
[1760934089702,6.656,190.79,190.72,2.76]
[1760934090101,4.7165,190.77,190.72,2.76]
[1760934090308,6.6565,190.77,190.67,2.76]
[1760934091807,4.7159,190.8,190.69,2.76]
[1760934092202,1.94,190.81,190.69,2.76]
[1760934092402,6.6555,190.81,190.7,4.7181]
[1760934092808,6.6555,190.81,190.69,2.76]
[1760934093113,4.7161,190.79,190.69,2.76]
[1760934093405,1.94,190.78,190.69,2.76]
[1760934093606,10.23507326,190.78,190.69,2.76]
[1760934093807,4.7166,190.77,190.69,2.76]
[1760934094109,1.94,190.76,190.66,2.76]
[1760934094708,1.94,190.76,190.66,7.4792]
[1760934094903,1.94,190.76,190.67,2.76]
[1760934095204,1.94,190.8,190.67,2.76]
[1760934095612,1.94,190.8,190.71,2.76]
[1760934096010,15.85628806,190.84,190.71,2.76]
[1760934096311,8.29507326,190.84,190.66,2.76]
[1760934096505,1.94,190.83,190.66,2.76]
[1760934096702,1.94,190.8,190.7,2.76]
[1760934098108,1.94,190.8,190.72,2.76]
[1760934099811,4.716,190.79,190.72,2.76]
[1760934100913,1.94,190.76,190.68,2.76]
[1760934101611,4.717,190.75,190.68,2.76]
[1760934102717,1.94,190.76,190.68,2.76]
[1760934103306,6.97831157,190.8,190.7,2.76]
[1760934105815,11.69431157,190.8,190.7,2.76]
[1760934106618,6.656,190.8,190.71,2.76]
[1760934107211,6.656,190.8,190.72,4.7177]
[1760934107614,1.94,190.8,190.71,2.76]